bitfinex/quotes_BTCUSD_20250617
["timestamp","ask_amount","ask_price","bid_price","bid_amount"]
[1750162888131,0.87712741,105760.0,105750.0,0.03387324]
[1750162888338,1.11340494,105760.0,105750.0,0.03387324]
[1750162888975,1.11331679,105760.0,105750.0,0.03387324]
[1750162891510,1.34950617,105760.0,105750.0,0.03387324]
[1750162896695,0.87712741,105760.0,105750.0,0.03387324]
[1750162896917,1.34950617,105760.0,105750.0,0.03387324]
[1750162901024,0.85620617,105760.0,105750.0,0.03387324]
[1750162901245,0.85620617,105760.0,105750.0,0.03324168]
[1750162902353,0.85620617,105760.0,105750.0,0.03344812]
[1750162903435,0.38382741,105760.0,105750.0,0.03344812]
[1750162903648,0.85620617,105760.0,105750.0,0.03344812]
[1750162904223,0.61954403,105760.0,105750.0,0.03344812]
[1750162908570,0.85573341,105760.0,105750.0,0.03344812]
[1750162909055,0.38335465,105760.0,105750.0,0.03344812]
[1750162909224,0.85573341,105760.0,105750.0,0.03344812]
[1750162909613,0.38335465,105760.0,105750.0,0.03344812]
[1750162909845,0.85573341,105760.0,105750.0,0.03344812]
[1750162911695,0.66101341,105760.0,105750.0,0.03344812]
[1750162911909,0.85557341,105760.0,105750.0,0.03344812]
[1750162914407,0.38319465,105760.0,105750.0,0.03344812]
[1750162914653,0.85557341,105760.0,105750.0,0.03344812]
[1750162914885,0.38319465,105760.0,105750.0,0.03344812]
[1750162915119,0.85557341,105760.0,105750.0,0.03344812]
[1750162916510,0.22988758,105770.0,105760.0,0.0312]
[1750162916741,0.77767796,105770.0,105760.0,0.22976278]
[1750162916967,0.97223796,105770.0,105760.0,0.23921806]
[1750162917430,0.97223796,105770.0,105760.0,0.24887969]
[1750162917431,0.47775796,105770.0,105760.0,0.24887969]
[1750162917658,0.63223796,105770.0,105760.0,0.24887969]
[1750162917871,0.20148858,105770.0,105760.0,0.24987969]
[1750162918090,0.43767796,105770.0,105760.0,0.25933479]
[1750162918302,0.63223796,105770.0,105760.0,0.25933479]
[1750162918770,0.39604858,105770.0,105760.0,0.25933479]
[1750162919026,0.63223796,105770.0,105760.0,0.2687898]
[1750162919505,0.63223796,105770.0,105760.0,0.25933479]
[1750162922079,0.47775796,105770.0,105760.0,0.24960678]
[1750162922292,0.47775796,105770.0,105760.0,0.248734]
[1750162922514,0.47771275,105770.0,105760.0,0.24846587]
[1750162923172,0.47771275,105770.0,105760.0,0.25792097]
[1750162923508,0.47771275,105770.0,105760.0,0.24846587]
[1750162923758,0.47771275,105770.0,105760.0,0.23901068]
[1750162923965,0.24152337,105770.0,105760.0,0.23901068]
[1750162924184,0.47771275,105770.0,105760.0,0.03099262]
[1750162924835,0.47771275,105770.0,105760.0,0.22010003]
[1750162925980,0.47771275,105770.0,105760.0,0.03099262]
[1750162928624,0.47771275,105770.0,105760.0,0.2295554]
[1750162928905,0.24152337,105770.0,105760.0,0.2295554]
[1750162929127,0.47771275,105770.0,105760.0,0.2295554]
[1750162929779,0.47771275,105770.0,105760.0,0.03099262]
[1750162930230,0.47771275,105770.0,105760.0,0.22010003]
[1750162930660,0.47771275,105770.0,105760.0,0.03099262]
[1750162934203,0.47771275,105770.0,105760.0,0.22010003]
[1750162934390,0.47724003,105770.0,105760.0,0.22010003]
[1750162935432,0.47724003,105770.0,105760.0,0.03141872]
[1750162936599,0.47724003,105770.0,105760.0,0.22052613]
[1750162936835,0.47724003,105770.0,105760.0,0.03141872]
[1750162937930,0.47724003,105770.0,105760.0,0.22052613]
[1750162938357,0.47724003,105770.0,105760.0,0.03141872]
[1750162940083,0.47724003,105770.0,105760.0,0.22052613]
[1750162940519,0.47724003,105770.0,105760.0,0.03141872]
[1750162940791,0.47724003,105770.0,105760.0,0.22052613]
[1750162941932,0.47724003,105770.0,105760.0,0.2299815]
[1750162942371,0.47724003,105770.0,105760.0,0.03141872]
[1750162942589,0.63156003,105770.0,105760.0,0.23943669]
[1750162942811,0.6410145,105770.0,105760.0,0.23943668]
[1750162943300,0.01239905,105770.0,105760.0,0.49453581]
[1750162943525,0.39118791,105780.0,105770.0,0.24965187]
[1750162943526,0.18317063,105780.0,105770.0,0.24965187]
[1750162943739,0.4288135,105780.0,105770.0,0.2502844]
[1750162944276,0.4288135,105780.0,105770.0,0.25028439]
[1750162944934,0.41936001,105780.0,105770.0,0.25028439]
[1750162945151,0.43066917,105780.0,105770.0,0.25028439]
[1750162945364,0.43066863,105780.0,105770.0,0.25028439]
[1750162945587,0.44012194,105780.0,105770.0,0.25128439]
[1750162945798,0.44957534,105780.0,105770.0,0.25128439]
[1750162946446,0.17557326,105780.0,105770.0,0.25128438]
[1750162946672,0.17371687,105780.0,105770.0,0.48747376]
[1750162946895,0.1642641,105780.0,105770.0,0.48747376]
[1750162947151,0.1642641,105780.0,105770.0,0.25128438]
[1750162947395,0.1642641,105780.0,105770.0,0.48747376]
[1750162947830,0.1642641,105780.0,105770.0,0.25128438]
[1750162948060,0.1642641,105780.0,105770.0,0.48747376]
[1750162948324,0.1642641,105780.0,105770.0,0.58371551]
[1750162948547,0.1642641,105780.0,105770.0,0.34752613]
[1750162948789,0.1642641,105780.0,105770.0,0.58371551]
[1750162949685,0.1642641,105780.0,105770.0,0.34752613]
[1750162949902,0.1642641,105780.0,105770.0,0.58371551]
[1750162950116,0.1642641,105780.0,105770.0,0.73807551]
[1750162950376,0.41935965,105780.0,105770.0,0.25128437]
[1750162950640,0.41935965,105780.0,105770.0,0.23237631]
[1750162950641,0.85407462,105780.0,105770.0,0.23237631]
[1750162950875,0.38169586,105780.0,105770.0,0.25128445]
[1750162951091,0.85407462,105780.0,105770.0,0.24183051]
[1750162951305,0.61788524,105780.0,105770.0,0.26073864]
[1750162951999,0.60843202,105780.0,105770.0,0.25128462]
[1750162952448,0.60843202,105780.0,105770.0,0.27019258]
[1750162952874,0.60834876,105780.0,105770.0,0.25128462]
[1750162953302,0.60834876,105780.0,105770.0,0.26073864]
[1750162953522,0.60834876,105780.0,105770.0,0.27019258]
[1750162953740,0.37224264,105780.0,105770.0,0.26073864]
[1750162953947,0.60834876,105780.0,105770.0,0.26073864]
[1750162954164,0.60834876,105780.0,105770.0,0.27019249]
[1750162954386,0.19262385,105780.0,105770.0,0.27019249]
[1750162954598,0.19262322,105780.0,105770.0,0.27019249]
[1750162955243,0.19262313,105780.0,105770.0,0.27019249]
[1750162955657,0.20207644,105780.0,105770.0,0.27019249]
[1750162955868,0.18316991,105780.0,105770.0,0.27019249]
[1750162956110,0.18316982,105780.0,105770.0,0.27019249]
[1750162956327,0.17371687,105780.0,105770.0,0.27019249]
[1750162956541,0.18316973,105780.0,105770.0,0.27019249]
[1750162956748,0.17371687,105780.0,105770.0,0.27019249]
[1750162957623,0.1642641,105780.0,105770.0,0.50629861]
[1750162958486,0.1642641,105780.0,105770.0,0.60254037]
[1750162960302,0.1642641,105780.0,105770.0,0.60254036]
[1750162962686,0.03966223,105790.0,105780.0,0.24773131]
[1750162962903,0.04911474,105790.0,105780.0,0.40268379]
[1750162963377,0.04911465,105790.0,105780.0,0.40268379]
[1750162964064,0.05011465,105790.0,105780.0,0.40268379]
[1750162964287,0.05211465,105790.0,105780.0,0.40268379]
[1750162964514,0.01430578,105790.0,105780.0,0.40268379]
[1750162964724,0.03321008,105790.0,105780.0,0.40268379]
[1750162964943,0.02375784,105790.0,105780.0,0.40268379]
[1750162965176,0.03320999,105790.0,105780.0,0.40268379]
[1750162965814,0.04266223,105790.0,105780.0,0.40268379]
[1750162966031,0.06156716,105790.0,105780.0,0.40268379]
[1750162966951,0.02375784,105790.0,105780.0,0.40268379]
[1750162967167,0.03320999,105790.0,105780.0,0.40268379]
[1750162967392,0.0426625,105790.0,105780.0,0.40268379]
[1750162967610,0.03320999,105790.0,105780.0,0.37234424]
[1750162967844,0.27876862,105790.0,105780.0,0.41419718]
[1750162968061,0.48672767,105790.0,105780.0,0.41419718]
[1750162968280,0.48672767,105790.0,105780.0,0.40474423]
[1750162968503,0.4772757,105790.0,105780.0,0.40474423]
[1750162968939,0.45837095,105790.0,105780.0,0.3534377]
[1750162969152,0.44891836,105790.0,105780.0,0.36289101]
[1750162969363,0.44891836,105790.0,105780.0,0.39709727]
[1750162969577,0.45837078,105790.0,105780.0,0.24281727]
[1750162969794,0.45837078,105790.0,105780.0,0.38764423]
[1750162970001,0.45837078,105790.0,105780.0,0.39709736]
[1750162970418,0.45837078,105790.0,105780.0,0.4065504]
[1750162971257,0.45837078,105790.0,105780.0,0.40654977]
[1750162972110,0.45837078,105790.0,105780.0,0.26736977]
[1750162972111,0.269317,105790.0,105780.0,0.26736977]
[1750162972331,0.45837078,105790.0,105780.0,0.40274378]
[1750162972545,0.45837078,105790.0,105780.0,0.38764378]
[1750162972968,0.27876898,105790.0,105780.0,0.39709673]
[1750162973178,0.48672803,105790.0,105780.0,0.22391064]
[1750162973394,0.46782346,105790.0,105780.0,0.37819064]
[1750162973830,0.46782346,105790.0,105780.0,0.378191]
[1750162974590,0.269317,105790.0,105780.0,0.38764404]
[1750162974791,0.45837078,105790.0,105780.0,0.378191]
[1750162975438,0.45837078,105790.0,105780.0,0.38764422]
[1750162976072,0.45637078,105790.0,105780.0,0.38764422]
[1750162977136,0.45537078,105790.0,105780.0,0.38764422]
[1750162978197,0.43646568,105790.0,105780.0,0.36869769]
[1750162978405,0.43646568,105790.0,105780.0,0.02538604]
[1750162978615,0.46906568,105790.0,105780.0,0.00063246]
[1750162978831,0.66326568,105790.0,105780.0,0.00063246]
[1750162980555,0.75950744,105790.0,105780.0,0.00063246]
[1750162980769,0.84757686,105790.0,105780.0,0.00063246]
[1750162980986,0.87596986,105790.0,105780.0,0.00063246]
[1750162981205,0.78790044,105790.0,105780.0,0.00063246]
[1750162981863,1.64386734,105790.0,105780.0,0.00063246]
[1750162984282,1.62120044,105790.0,105780.0,0.00063246]
[1750162987690,1.64384445,105790.0,105780.0,0.00063246]
[1750162987919,1.73999367,105790.0,105780.0,0.00063246]
[1750162988116,1.71734966,105790.0,105780.0,0.00063246]
[1750162988622,1.73999136,105790.0,105780.0,0.00063246]
[1750162990429,1.71734966,105790.0,105780.0,0.00063246]
[1750162994126,1.50387555,105790.0,105780.0,0.00063246]
[1750162994382,1.58860044,105790.0,105780.0,0.00063246]
[1750162994805,1.5884186,105790.0,105780.0,0.00063246]
[1750162995252,1.3942186,105790.0,105780.0,0.00063246]
[1750162995466,1.5884186,105790.0,105780.0,0.00063246]
[1750162995925,1.5884186,105790.0,105780.0,0.00044635]
[1750162999089,1.15811248,105790.0,105780.0,0.00044635]
[1750162999328,1.3942186,105790.0,105780.0,0.03234635]
[1750162999563,1.5883386,105790.0,105780.0,0.03234635]
[1750163000674,1.3942186,105790.0,105780.0,0.03234635]
[1750163000890,0.55172151,105790.0,105780.0,0.24977757]
[1750163001160,0.53278075,105790.0,105780.0,0.24977757]
[1750163001590,0.73128712,105790.0,105780.0,0.24977757]
[1750163001815,0.54223334,105790.0,105780.0,0.24977757]
[1750163002455,0.73128712,105790.0,105780.0,0.24977757]
[1750163002669,0.54223334,105790.0,105780.0,0.24977757]
[1750163002882,0.73128712,105790.0,105780.0,0.24032462]
[1750163003116,0.73128712,105790.0,105780.0,0.24977775]
[1750163003794,0.73128712,105790.0,105780.0,0.24032462]
[1750163004006,0.21908282,105790.0,105780.0,0.2308714]
[1750163004430,0.21908282,105790.0,105780.0,0.221418]
[1750163004650,0.44573643,105790.0,105780.0,0.221418]
[1750163004841,0.20963031,105790.0,105780.0,0.23087158]
[1750163005155,0.20963031,105790.0,105780.0,0.24977847]
[1750163005811,0.20963031,105790.0,105780.0,0.25923178]
[1750163006465,0.20963031,105790.0,105780.0,0.24977847]
[1750163006675,0.44573643,105790.0,105780.0,0.24977847]
[1750163007324,0.20963031,105790.0,105780.0,0.24032507]
[1750163007541,0.44573643,105790.0,105780.0,0.24032506]
[1750163008436,0.43628384,105790.0,105780.0,0.24032506]
[1750163008911,0.43628384,105790.0,105780.0,0.23087157]
[1750163009327,0.24723006,105790.0,105780.0,0.23087157]
[1750163009572,0.02057582,105790.0,105780.0,0.25923114]
[1750163009787,0.03002779,105790.0,105780.0,0.50479021]
[1750163010030,0.02057582,105790.0,105780.0,0.50479021]
[1750163010249,0.02057582,105790.0,105780.0,0.26868409]
[1750163010250,0.00945188,105790.0,105780.0,0.26868409]
[1750163010468,0.18379034,105800.0,105790.0,0.24901076]
[1750163010686,0.40118108,105800.0,105790.0,0.24945719]
[1750163011341,0.20269338,105800.0,105790.0,0.25890925]
[1750163011771,0.20316574,105800.0,105790.0,0.25890925]
[1750163011981,0.62830839,105800.0,105790.0,0.24000504]
[1750163012198,0.39220227,105800.0,105790.0,0.24945719]
[1750163012416,0.40165406,105800.0,105790.0,0.24945719]
[1750163013088,0.04900636,105800.0,105790.0,0.24945719]
[1750163013342,0.20316636,105800.0,105790.0,0.25890925]
[1750163013565,0.20316636,105800.0,105790.0,0.25890924]
[1750163014006,0.39220272,105800.0,105790.0,0.24000503]
[1750163014436,0.39220272,105800.0,105790.0,0.24945727]
[1750163015333,0.39216272,105800.0,105790.0,0.24945727]
[1750163016857,0.38271129,105800.0,105790.0,0.24945727]
[1750163017970,0.22859129,105800.0,105790.0,0.24945727]
[1750163020122,0.21913968,105800.0,105790.0,0.2305527]
[1750163020597,0.21913968,105800.0,105790.0,0.24000521]
[1750163020817,0.00047236,105800.0,105790.0,0.49501572]
[1750163021045,0.00047236,105800.0,105790.0,0.82095256]
[1750163021264,0.00047236,105800.0,105790.0,0.82095255]
[1750163021471,0.00047236,105800.0,105790.0,0.83214165]
[1750163021662,0.00047236,105800.0,105790.0,0.66683255]
[1750163021904,0.00047236,105800.0,105790.0,0.82095255]
[1750163022361,0.00047236,105800.0,105790.0,0.97795255]
[1750163022580,0.00047236,105800.0,105790.0,0.99249339]
[1750163023021,0.00047236,105800.0,105790.0,1.33249339]
[1750163024196,0.00047236,105800.0,105790.0,1.33249338]
[1750163024940,0.00047236,105800.0,105790.0,1.34338268]
[1750163025620,0.00047236,105800.0,105790.0,1.2678076]
[1750163027672,0.00047236,105800.0,105790.0,1.3076076]
[1750163028169,0.00047236,105800.0,105790.0,1.33132992]
[1750163028388,0.00047236,105800.0,105790.0,1.33232992]
[1750163028612,0.00047236,105800.0,105790.0,1.38232992]
[1750163028828,0.00047236,105800.0,105790.0,1.39232992]
[1750163029030,0.00047236,105800.0,105790.0,1.39032992]
[1750163029243,0.00047236,105800.0,105790.0,1.39032991]
[1750163029441,0.00047236,105800.0,105790.0,1.38784991]
[1750163029682,0.00047236,105800.0,105790.0,1.39284991]
[1750163030081,0.00047236,105800.0,105790.0,1.19892991]
[1750163030283,0.00047236,105800.0,105790.0,1.39284991]
[1750163030743,0.00047236,105800.0,105790.0,1.19892991]
[1750163030962,0.00047236,105800.0,105790.0,1.23876991]
[1750163031179,0.00047236,105800.0,105790.0,1.14892991]
[1750163031613,0.00047236,105800.0,105790.0,1.34280991]
[1750163033355,0.00047236,105800.0,105790.0,1.14892991]
[1750163033574,0.00047236,105800.0,105790.0,0.53056062]
[1750163033793,0.00047236,105800.0,105790.0,0.94965744]
[1750163034664,0.00047236,105800.0,105790.0,0.93265744]
[1750163035104,0.00047236,105800.0,105790.0,0.93965744]
[1750163037538,0.00047236,105800.0,105790.0,0.89981744]
[1750163038583,0.00047236,105800.0,105790.0,0.35967132]
[1750163038799,0.00047236,105800.0,105790.0,0.51371132]
[1750163039008,0.00047236,105800.0,105790.0,0.35967132]
[1750163039218,0.00992335,105800.0,105790.0,0.74981744]
[1750163039674,0.0193746,105800.0,105790.0,0.74981744]
[1750163039885,0.01937452,105800.0,105790.0,0.74981744]
[1750163040094,0.00992344,105800.0,105790.0,0.74981744]
[1750163040345,0.01937461,105800.0,105790.0,0.74981744]
[1750163040610,0.22731356,105800.0,105790.0,0.33431926]
[1750163040838,0.2178631,105800.0,105790.0,0.36696517]
[1750163041063,0.2178631,105800.0,105790.0,0.38586974]
[1750163041289,0.2178631,105800.0,105790.0,0.38286974]
[1750163041503,0.02882657,105800.0,105790.0,0.3923218]
[1750163041717,0.01937496,105800.0,105790.0,0.3943218]
[1750163041927,0.01937487,105800.0,105790.0,0.65652792]
[1750163042137,0.01937487,105800.0,105790.0,0.65852792]
[1750163042347,0.00992353,105800.0,105790.0,0.65852792]
[1750163042890,0.00992344,105800.0,105790.0,0.65852792]
[1750163043548,0.00047236,105800.0,105790.0,0.65852792]
[1750163043749,0.00047236,105800.0,105790.0,0.75476968]
[1750163043965,0.00992344,105800.0,105790.0,0.75476968]
[1750163044219,0.00047236,105800.0,105790.0,0.75476968]
[1750163044649,1.12462989,105840.0,105810.0,0.19846624]
[1750163044856,0.42513382,105820.0,105810.0,0.19891252]
[1750163045030,0.1890277,105820.0,105810.0,0.00989718]
[1750163045169,0.1890277,105820.0,105810.0,0.00044628]
[1750163046239,0.1910277,105820.0,105810.0,0.19891523]
[1750163046456,0.1910277,105820.0,105810.0,0.20836595]
[1750163047076,0.1910277,105820.0,105810.0,0.21781658]
[1750163047543,0.01144929,105820.0,105810.0,0.50482351]
[1750163047813,0.002,105820.0,105810.0,0.50482351]
[1750163048050,0.002,105820.0,105810.0,0.60106527]
[1750163050305,0.002,105820.0,105810.0,0.60106526]
[1750163054156,0.002,105820.0,105810.0,0.36495914]
[1750163054365,0.002,105820.0,105810.0,0.60106526]
[1750163057628,0.002,105820.0,105810.0,0.75506526]
[1750163059270,0.002,105820.0,105810.0,0.75506525]
[1750163059796,0.002,105820.0,105810.0,0.51895913]
[1750163060006,0.01144929,105820.0,105810.0,0.75502525]
[1750163060449,0.01144929,105820.0,105810.0,0.48892349]
[1750163060450,0.03034859,105820.0,105810.0,0.48892349]
[1750163060668,0.47055516,105820.0,105810.0,0.19891512]
[1750163060893,0.46970569,105820.0,105810.0,0.19891521]
[1750163061111,0.46970569,105820.0,105810.0,0.20836602]
[1750163061349,0.23359957,105820.0,105810.0,0.00989716]
[1750163061590,0.46025613,105820.0,105810.0,0.00044626]
[1750163063407,0.80025613,105820.0,105810.0,0.00044626]
[1750163068366,0.56415001,105820.0,105810.0,0.00044626]
[1750163068570,0.80025613,105820.0,105810.0,0.00044626]
[1750163069316,0.80025613,105820.0,105810.0,0.18946431]
[1750163069525,0.80025613,105820.0,105810.0,0.00044626]
[1750163069762,0.80025613,105820.0,105810.0,0.18946431]
[1750163069964,0.79998337,105820.0,105810.0,0.18946431]
[1750163070227,1.05018513,105820.0,105810.0,0.00044626]
[1750163070875,1.3384036,105820.0,105810.0,0.00044626]
[1750163071108,1.3384036,105820.0,105810.0,0.00027903]
[1750163071319,1.10229748,105820.0,105810.0,0.00027903]
[1750163071972,1.13068448,105820.0,105810.0,0.00027903]
[1750163075072,1.62398448,105820.0,105810.0,0.00027903]
[1750163077807,1.47002448,105820.0,105810.0,0.00027903]
[1750163078229,1.66378448,105820.0,105810.0,0.00027903]
[1750163078885,1.61167213,105820.0,105810.0,0.00027903]
[1750163079095,1.58801213,105820.0,105810.0,0.00027903]
[1750163079529,0.26836425,105820.0,105810.0,0.21959708]
[1750163079748,0.26836425,105820.0,105810.0,0.24794924]
[1750163079749,0.20017725,105820.0,105810.0,0.24794924]
[1750163079962,0.69413725,105820.0,105810.0,0.24794924]
[1750163080172,0.69413725,105820.0,105810.0,0.25739978]
[1750163080391,0.35413725,105820.0,105810.0,0.25739978]
[1750163080633,0.69413725,105820.0,105810.0,0.25739978]
[1750163080860,0.69413725,105820.0,105810.0,0.50295617]
[1750163080861,0.01117653,105820.0,105810.0,0.50295617]
[1750163081194,0.00172724,105820.0,105810.0,0.50295617]
[1750163081992,0.00172724,105820.0,105810.0,0.50295616]
[1750163082204,0.01117644,105820.0,105810.0,0.50295616]
[1750163082423,0.00172724,105820.0,105810.0,0.50295616]
[1750163086585,0.01117653,105820.0,105810.0,0.26685004]
[1750163086805,0.01117653,105820.0,105810.0,0.50295616]
[1750163087026,0.00172724,105820.0,105810.0,0.50295616]
[1750163087701,0.01117653,105820.0,105810.0,0.50295616]
[1750163087885,0.02062591,105820.0,105810.0,0.50295616]
[1750163088304,0.02062582,105820.0,105810.0,0.50295616]
[1750163088519,0.00172724,105820.0,105810.0,0.50295616]
[1750163088952,0.01117653,105820.0,105810.0,0.50295616]
[1750163089153,0.01117644,105820.0,105810.0,0.50295616]
[1750163089570,0.00172724,105820.0,105810.0,0.50295616]
[1750163089981,0.01117644,105820.0,105810.0,0.50295616]
[1750163090183,0.02062582,105820.0,105810.0,0.50295616]
[1750163090610,0.01117644,105820.0,105810.0,0.50295616]
[1750163091477,0.02062582,105820.0,105810.0,0.50295616]
[1750163092284,0.03007538,105820.0,105810.0,0.50295616]
[1750163092692,0.03007538,105820.0,105810.0,0.26685004]
[1750163093322,0.02062582,105820.0,105810.0,0.26685004]
[1750163093764,0.02062591,105820.0,105810.0,0.26685004]
[1750163094394,0.0395253,105820.0,105810.0,0.26685004]
[1750163094778,0.03007547,105820.0,105810.0,0.26685004]
[1750163094979,0.03952521,105820.0,105810.0,0.26685004]
[1750163095364,0.97941311,105820.0,105810.0,0.00027902]
[1750163095557,1.09995487,105820.0,105810.0,0.00027902]
[1750163095759,1.12833787,105820.0,105810.0,0.00027902]
[1750163096174,1.15494672,105820.0,105810.0,0.00027902]
[1750163099215,1.39105284,105820.0,105810.0,0.00027902]
[1750163099404,1.17755241,105820.0,105810.0,0.00027902]
[1750163100949,0.96126672,105820.0,105810.0,0.00027902]
[1750163101171,1.12841787,105820.0,105810.0,0.00027902]
[1750163102931,1.11981787,105820.0,105810.0,0.00027902]
[1750163104538,1.12841787,105820.0,105810.0,0.00027902]
[1750163104749,0.93465787,105820.0,105810.0,0.00027902]
[1750163104987,1.11981787,105820.0,105810.0,0.00027902]
[1750163108021,1.21596709,105820.0,105810.0,0.00027902]
[1750163108767,1.11981787,105820.0,105810.0,0.00027902]
[1750163109002,1.12841787,105820.0,105810.0,0.00027902]
[1750163112445,1.11981787,105820.0,105810.0,0.00027902]
[1750163113562,1.11959162,105820.0,105810.0,0.00027902]
[1750163118024,1.15080144,105820.0,105810.0,0.00027902]
[1750163118245,1.22434084,105820.0,105810.0,0.00027902]
[1750163118468,1.24695082,105820.0,105810.0,0.00027902]
[1750163120009,1.48305694,105820.0,105810.0,0.00027902]
[1750163120235,1.24695082,105820.0,105810.0,0.00027902]
[1750163120461,1.21574084,105820.0,105810.0,0.00027902]
[1750163120669,1.23836217,105820.0,105810.0,0.00027902]
[1750163122670,1.22266217,105820.0,105810.0,0.00027902]
[1750163123359,1.45876829,105820.0,105810.0,0.00027902]
[1750163123593,1.47436829,105820.0,105810.0,0.00027902]
[1750163123831,1.48296829,105820.0,105810.0,0.00027902]
[1750163124072,1.24686217,105820.0,105810.0,0.00027902]
[1750163124797,1.51122496,105820.0,105810.0,0.00027902]
[1750163125070,1.48296829,105820.0,105810.0,0.00027902]
[1750163125308,1.52576581,105820.0,105810.0,0.00027902]
[1750163126447,1.28105969,105820.0,105810.0,0.00027902]
[1750163126693,0.97555047,105820.0,105810.0,0.00027902]
[1750163126933,1.16939047,105820.0,105810.0,0.00027902]
[1750163127890,1.40549659,105820.0,105810.0,0.00027902]
[1750163128102,1.16939047,105820.0,105810.0,0.00027902]
[1750163128555,1.18529047,105820.0,105810.0,0.00027902]
[1750163128761,1.28143969,105820.0,105810.0,0.00027902]
[1750163130599,1.51754581,105820.0,105810.0,0.00027902]
[1750163132708,1.50164581,105820.0,105810.0,0.00027902]
[1750163133552,1.07169969,105820.0,105810.0,0.00027902]
[1750163133771,1.26541969,105820.0,105810.0,0.00027902]
[1750163133996,1.07169969,105820.0,105810.0,0.00027902]
[1750163134217,1.26541969,105820.0,105810.0,0.01617902]
[1750163136862,1.07169969,105820.0,105810.0,0.01617902]
[1750163137105,1.26541969,105820.0,105810.0,0.01617902]
[1750163137371,0.7249035,105820.0,105810.0,0.03207902]
[1750163137633,1.12647295,105820.0,105810.0,0.03207902]
[1750163137906,0.69664683,105820.0,105810.0,0.03207902]
[1750163138162,0.93275295,105820.0,105810.0,0.03207902]
[1750163138397,1.12647295,105820.0,105810.0,0.03207902]
[1750163140463,1.15472962,105820.0,105810.0,0.03207902]
[1750163142679,0.93275295,105820.0,105810.0,0.03207902]
[1750163142909,1.12647295,105820.0,105810.0,0.03207902]
[1750163143164,1.12655295,105820.0,105810.0,0.03207902]
[1750163143392,0.97251295,105820.0,105810.0,0.03207902]
[1750163143613,1.12655295,105820.0,105810.0,0.03207902]
[1750163145387,1.1263106,105820.0,105810.0,0.03207902]
[1750163145828,1.1263106,105820.0,105810.0,0.03201983]
[1750163154608,1.36241672,105820.0,105810.0,0.03201983]
[1750163154903,1.42567331,105820.0,105810.0,0.01611983]
[1750163154907,1.45392998,105820.0,105810.0,0.01611983]
[1750163155715,1.46847083,105820.0,105810.0,0.01611983]
[1750163156817,0.99625859,105820.0,105810.0,0.01611983]
[1750163157085,1.46847083,105820.0,105810.0,0.01611983]
[1750163157593,1.23236471,105820.0,105810.0,0.01611983]
[1750163158030,1.23236471,105820.0,105810.0,0.03171983]
[1750163162882,1.46847083,105820.0,105810.0,0.03171983]
[1750163163326,1.23236471,105820.0,105810.0,0.03171983]
[1750163168969,1.46847083,105820.0,105810.0,0.03171983]
[1750163171047,1.70433824,105820.0,105810.0,0.03171983]
[1750163171780,1.70433824,105820.0,105810.0,0.01611983]
[1750163172535,0.02399246,105800.0,105790.0,0.015]
[1750163172796,0.20797818,105780.0,105770.0,0.07557508]
[1750163173037,0.96995304,105780.0,105770.0,0.07557508]
[1750163173267,0.96995304,105780.0,105770.0,0.07579491]
[1750163173502,0.99834704,105780.0,105770.0,0.07579491]
[1750163173741,1.02713982,105780.0,105770.0,0.07579491]
[1750163174224,1.02713982,105780.0,105770.0,0.07626727]
[1750163174979,0.79122226,105780.0,105770.0,0.07626727]
[1750163175486,0.79122226,105780.0,105770.0,0.00069219]
[1750163175719,0.79222226,105780.0,105770.0,0.03369219]
[1750163177588,0.80239949,105780.0,105770.0,0.03369219]
[1750163187607,1.37853503,105780.0,105770.0,0.03369219]
[1750163188046,1.14239949,105780.0,105770.0,0.03369219]
[1750163188261,1.14239949,105780.0,105770.0,0.03363075]
[1750163195071,1.37856003,105780.0,105770.0,0.03363075]
[1750163198182,1.37856003,105780.0,105770.0,0.4683227]
[1750163198183,0.27634219,105780.0,105770.0,0.4683227]
[1750163198427,0.27634219,105780.0,105770.0,0.477777]
[1750163198428,0.47006219,105780.0,105770.0,0.477777]
[1750163198670,0.31610219,105780.0,105770.0,0.23217467]
[1750163198904,0.31610219,105780.0,105770.0,0.24162878]
[1750163199141,0.55225023,105780.0,105770.0,0.24162896]
[1750163199372,0.31610219,105780.0,105770.0,0.26053718]
[1750163200516,0.28770819,105780.0,105770.0,0.26053718]
[1750163202159,0.24794819,105780.0,105770.0,0.26053718]
[1750163202386,0.24794819,105780.0,105770.0,0.26053719]
[1750163202599,0.24794819,105780.0,105770.0,0.26999113]
[1750163203873,0.24794819,105780.0,105770.0,0.26053719]
[1750163204107,0.24794819,105780.0,105770.0,0.25108317]
[1750163204323,0.24794819,105780.0,105770.0,0.23217468]
[1750163204572,0.24794819,105780.0,105770.0,0.24162888]
[1750163205474,0.24794819,105780.0,105770.0,0.23217468]
[1750163205703,0.24794819,105780.0,105770.0,0.24162897]
[1750163207583,0.47456847,105780.0,105770.0,0.23217468]
[1750163208273,0.46511507,105780.0,105770.0,0.03363077]
[1750163208474,0.46511507,105780.0,105770.0,0.2227203]
[1750163208757,0.46511507,105780.0,105770.0,0.03363077]
[1750163211129,0.46511507,105780.0,105770.0,0.2227203]
[1750163211574,0.46511507,105780.0,105770.0,0.03363077]
[1750163212007,0.46511507,105780.0,105770.0,0.2227203]
[1750163212729,0.22904166,105780.0,105770.0,0.23217477]
[1750163213391,0.22904166,105780.0,105770.0,0.03363077]
[1750163214003,0.22904166,105780.0,105770.0,0.23217477]
[1750163214484,0.22904166,105780.0,105770.0,0.03363077]
[1750163214915,0.22904166,105780.0,105770.0,0.2227203]
[1750163215125,0.46511507,105780.0,105770.0,0.2227203]
[1750163215350,0.46511507,105780.0,105770.0,0.23217477]
[1750163217079,0.46511507,105780.0,105770.0,0.24162915]
[1750163217283,0.22904166,105780.0,105770.0,0.24162915]
[1750163218159,0.22904166,105780.0,105770.0,0.04308524]
[1750163218361,0.22904166,105780.0,105770.0,0.23217477]
[1750163220160,0.25743466,105780.0,105770.0,0.23217477]
[1750163220328,0.25743466,105780.0,105770.0,0.03363077]
[1750163220757,0.25743466,105780.0,105770.0,0.2227203]
[1750163221098,0.49353551,105780.0,105770.0,0.24162915]
[1750163221940,0.04942296,105780.0,105770.0,0.50609216]
[1750163222153,0.05887609,105780.0,105770.0,0.50609216]
[1750163222359,0.04942296,105780.0,105770.0,0.50609216]
[1750163223008,0.02979278,105780.0,105770.0,0.50609216]
[1750163223250,0.03924555,105780.0,105770.0,0.50609216]
[1750163223456,0.05651172,105780.0,105770.0,0.26999131]
[1750163223711,0.05651172,105780.0,105770.0,0.50609216]
[1750163223712,0.02935885,105780.0,105770.0,0.50609216]
[1750163223933,0.001,105780.0,105770.0,0.60233393]
[1750163224160,0.01045286,105780.0,105770.0,0.75625393]
[1750163224372,0.001,105780.0,105770.0,0.75625393]
[1750163225679,0.04804403,105790.0,105780.0,0.24983131]
[1750163225911,0.03859161,105790.0,105780.0,0.24998973]
[1750163226119,0.03859161,105790.0,105780.0,0.48609058]
[1750163226330,0.04804412,105790.0,105780.0,0.48609058]
[1750163226796,0.24655058,105790.0,105780.0,0.24998991]
[1750163227028,0.2370987,105790.0,105780.0,0.24998991]
[1750163227253,0.2380987,105790.0,105780.0,0.24998991]
[1750163227924,0.45529507,105790.0,105780.0,0.23108365]